[Event "Titled Tuesday Blitz May 23 Late 2023"]
[White "Dimitrov, Atanas"]
[Black "Taboas Rodriguez, Daniel"]
[WhiteFideId "2901315"]
[BlackFideId "2208466"]
[WhiteElo "2709"]
[BlackElo "2365"]
[Result "1/2-1/2"]
[Round "04"]
[TimeControl "180+2"]
[Date "2023.05.23"]
[WhiteClock "0:00:02"]
[BlackClock "0:00:21"]

1. Nf3 {[%clk 0:03:00]}  Nf6 {[%clk 0:02:59]} 2. c4 {[%clk 0:03:00]}  g6 {[%clk 0:02:57]} 3. Nc3 {[%clk 0:02:59]}  Bg7 {[%clk 0:02:57]} 4. e3 {[%clk 0:02:59]}  O-O {[%clk 0:02:57]} 5. Be2 {[%clk 0:02:59]}  b6 {[%clk 0:02:57]} 6. O-O {[%clk 0:02:59]}  Bb7 {[%clk 0:02:57]} 7. b3 {[%clk 0:03:00]}  c5 {[%clk 0:02:52]} 8. Bb2 {[%clk 0:03:01]}  Nc6 {[%clk 0:02:52]} 9. d4 {[%clk 0:02:49]}  cxd4 {[%clk 0:02:50]} 10. Nxd4 {[%clk 0:02:49]}  Nxd4 {[%clk 0:02:46]} 11. Qxd4 {[%clk 0:02:50]}  Ne4 {[%clk 0:02:46]} 12. Qd3 {[%clk 0:02:47]}  Nxc3 {[%clk 0:02:44]} 13. Bxc3 {[%clk 0:02:47]}  Bxc3 {[%clk 0:02:44]} 14. Qxc3 {[%clk 0:02:47]}  Qc7 {[%clk 0:02:44]} 15. Rac1 {[%clk 0:02:43]}  d6 {[%clk 0:02:41]} 16. Rfd1 {[%clk 0:02:38]}  Rac8 {[%clk 0:02:40]} 17. Qd4 {[%clk 0:02:38]}  Qc5 {[%clk 0:02:40]} 18. Qh4 {[%clk 0:02:35]}  Rc7 {[%clk 0:02:38]} 19. h3 {[%clk 0:02:34]}  Qa3 {[%clk 0:02:37]} 20. Rc2 {[%clk 0:02:33]}  Rfc8 {[%clk 0:02:37]} 21. Rcd2 {[%clk 0:02:33]}  a6 {[%clk 0:02:32]} 22. Bg4 {[%clk 0:02:29]}  Re8 {[%clk 0:02:26]} 23. Be2 {[%clk 0:02:24]}  Rec8 {[%clk 0:02:23]} 24. Bg4 {[%clk 0:02:07]}  Re8 {[%clk 0:02:21]} 25. Qg3 {[%clk 0:02:08]}  b5 {[%clk 0:02:16]} 26. cxb5 {[%clk 0:02:07]}  axb5 {[%clk 0:02:17]} 27. h4 {[%clk 0:02:06]}  Rc1 {[%clk 0:02:14]} 28. Bd7 {[%clk 0:01:37]}  Ra8 {[%clk 0:02:01]} 29. Bxb5 {[%clk 0:01:27]}  Rxd1+ {[%clk 0:01:44]} 30. Rxd1 {[%clk 0:01:27]}  Qxa2 {[%clk 0:01:45]} 31. Bc4 {[%clk 0:01:28]}  d5 {[%clk 0:01:40]} 32. Bxd5 {[%clk 0:01:22]}  Bxd5 {[%clk 0:01:41]} 33. Rxd5 {[%clk 0:01:22]}  Qxb3 {[%clk 0:01:37]} 34. Rd7 {[%clk 0:01:16]}  Qe6 {[%clk 0:01:29]} 35. Rd4 {[%clk 0:01:05]}  h5 {[%clk 0:01:27]} 36. Kh2 {[%clk 0:01:02]}  Qf6 {[%clk 0:01:25]} 37. Rf4 {[%clk 0:01:01]}  Qd6 {[%clk 0:01:24]} 38. Rd4 {[%clk 0:00:52]}  Qxg3+ {[%clk 0:01:23]} 39. Kxg3 {[%clk 0:00:53]}  Kg7 {[%clk 0:01:23]} 40. Kf3 {[%clk 0:00:52]}  Ra1 {[%clk 0:01:22]} 41. g3 {[%clk 0:00:51]}  Ra2 {[%clk 0:01:21]} 42. Rd7 {[%clk 0:00:51]}  Kf6 {[%clk 0:01:21]} 43. Rb7 {[%clk 0:00:52]}  Ra3 {[%clk 0:01:21]} 44. Rb5 {[%clk 0:00:49]}  Ra6 {[%clk 0:01:21]} 45. Kf4 {[%clk 0:00:48]}  e6 {[%clk 0:01:21]} 46. f3 {[%clk 0:00:48]}  Ra4+ {[%clk 0:01:21]} 47. e4 {[%clk 0:00:48]}  Rc4 {[%clk 0:01:22]} 48. Ra5 {[%clk 0:00:47]}  Rb4 {[%clk 0:01:22]} 49. g4 {[%clk 0:00:44]}  hxg4 {[%clk 0:01:21]} 50. Kxg4 {[%clk 0:00:45]}  Rb1 {[%clk 0:01:19]} 51. h5 {[%clk 0:00:43]}  Rg1+ {[%clk 0:01:18]} 52. Kf4 {[%clk 0:00:42]}  g5+ {[%clk 0:01:16]} 53. Ke3 {[%clk 0:00:42]}  Rh1 {[%clk 0:01:17]} 54. Kf2 {[%clk 0:00:34]}  Rxh5 {[%clk 0:01:15]} 55. Kg2 {[%clk 0:00:34]}  Rh4 {[%clk 0:01:15]} 56. Kg3 {[%clk 0:00:34]}  Rf4 {[%clk 0:01:08]} 57. Rb5 {[%clk 0:00:33]}  Kg6 {[%clk 0:01:06]} 58. Ra5 {[%clk 0:00:34]}  f6 {[%clk 0:01:06]} 59. Ra6 {[%clk 0:00:33]}  e5 {[%clk 0:01:06]} 60. Ra8 {[%clk 0:00:32]}  Rh4 {[%clk 0:01:00]} 61. Rg8+ {[%clk 0:00:31]}  Kf7 {[%clk 0:01:00]} 62. Ra8 {[%clk 0:00:32]}  Rh1 {[%clk 0:01:00]} 63. Ra7+ {[%clk 0:00:33]}  Kg6 {[%clk 0:01:00]} 64. Ra8 {[%clk 0:00:33]}  Rg1+ {[%clk 0:01:00]} 65. Kf2 {[%clk 0:00:33]}  Rb1 {[%clk 0:00:59]} 66. Kg3 {[%clk 0:00:33]}  Rg1+ {[%clk 0:00:52]} 67. Kf2 {[%clk 0:00:33]}  Rh1 {[%clk 0:00:53]} 68. Kg2 {[%clk 0:00:33]}  Rh4 {[%clk 0:00:53]} 69. Kg3 {[%clk 0:00:33]}  Kg7 {[%clk 0:00:52]} 70. Ra7+ {[%clk 0:00:33]}  Kg6 {[%clk 0:00:52]} 71. Ra8 {[%clk 0:00:34]}  Rf4 {[%clk 0:00:53]} 72. Rb8 {[%clk 0:00:30]}  Kf7 {[%clk 0:00:51]} 73. Rb7+ {[%clk 0:00:30]}  Ke6 {[%clk 0:00:52]} 74. Rb6+ {[%clk 0:00:31]}  Ke7 {[%clk 0:00:52]} 75. Rb7+ {[%clk 0:00:31]}  Kd6 {[%clk 0:00:52]} 76. Rb4 {[%clk 0:00:22]}  Kc5 {[%clk 0:00:49]} 77. Ra4 {[%clk 0:00:22]}  Kb5 {[%clk 0:00:49]} 78. Ra1 {[%clk 0:00:20]}  g4 {[%clk 0:00:49]} 79. Rb1+ {[%clk 0:00:20]}  Kc4 {[%clk 0:00:44]} 80. fxg4 {[%clk 0:00:21]}  Rxe4 {[%clk 0:00:44]} 81. Rf1 {[%clk 0:00:22]}  Re3+ {[%clk 0:00:39]} 82. Kh4 {[%clk 0:00:22]}  e4 {[%clk 0:00:37]} 83. Rxf6 {[%clk 0:00:23]}  Kd3 {[%clk 0:00:36]} 84. g5 {[%clk 0:00:23]}  Rf3 {[%clk 0:00:35]} 85. Rd6+ {[%clk 0:00:17]}  Ke2 {[%clk 0:00:35]} 86. g6 {[%clk 0:00:17]}  Rf1 {[%clk 0:00:32]} 87. Rd5 {[%clk 0:00:13]}  e3 {[%clk 0:00:24]} 88. Kg5 {[%clk 0:00:09]}  Rg1+ {[%clk 0:00:21]} 89. Kh6 {[%clk 0:00:09]}  Kf2 {[%clk 0:00:21]} 90. Rf5+ {[%clk 0:00:08]}  Ke1 {[%clk 0:00:20]} 91. Rg5 {[%clk 0:00:04]}  Rxg5 {[%clk 0:00:19]} 92. Kxg5 {[%clk 0:00:05]}  e2 {[%clk 0:00:20]} 93. g7 {[%clk 0:00:05]}  Kf2 {[%clk 0:00:20]} 94. g8=Q {[%clk 0:00:05]}  e1=Q {[%clk 0:00:21]} 95. Qf7+ {[%clk 0:00:05]}  Ke2 {[%clk 0:00:21]} 96. Qe6+ {[%clk 0:00:05]}  Kf1 {[%clk 0:00:22]} 97. Qf5+ {[%clk 0:00:05]}  Qf2 {[%clk 0:00:23]} 98. Qb1+ {[%clk 0:00:06]}  Kg2 {[%clk 0:00:22]} 99. Qe4+ {[%clk 0:00:05]}  Qf3 {[%clk 0:00:22]} 100. Qc2+ {[%clk 0:00:06]}  Qf2 {[%clk 0:00:22]} 101. Qc4 {[%clk 0:00:04]}  Qg3+ {[%clk 0:00:22]} 102. Qg4 {[%clk 0:00:03]}  Kf2 {[%clk 0:00:21]} 103. Qxg3+ {[%clk 0:00:02]}  Kxg3 {[%clk 0:00:21]} 1/2-1/2


[Site "https://www.chess.com"]

[Event "Titled Tuesday Blitz May 23 Late 2023"]
[White "benny_aizenberg"]
[Black "Ezat, Mohamed"]
[BlackFideId "10600906"]
[WhiteElo "2694"]
[BlackElo "2386"]
[Result "1-0"]
[Round "04"]
[TimeControl "180+2"]
[Date "2023.05.23"]
[WhiteClock "0:01:09"]
[BlackClock "0:00:30"]

1. f4 {[%clk 0:03:00]}  Nf6 {[%clk 0:02:57]} 2. Nf3 {[%clk 0:03:00]}  g6 {[%clk 0:02:57]} 3. d3 {[%clk 0:02:58]}  Bg7 {[%clk 0:02:57]} 4. e4 {[%clk 0:02:58]}  O-O {[%clk 0:02:58]} 5. g3 {[%clk 0:02:58]}  d6 {[%clk 0:02:50]} 6. Bg2 {[%clk 0:02:58]}  e5 {[%clk 0:02:48]} 7. O-O {[%clk 0:02:56]}  exf4 {[%clk 0:02:47]} 8. gxf4 {[%clk 0:02:55]}  Nh5 {[%clk 0:02:47]} 9. Nc3 {[%clk 0:02:52]}  Nc6 {[%clk 0:02:46]} 10. d4 {[%clk 0:02:35]}  Bg4 {[%clk 0:02:43]} 11. d5 {[%clk 0:02:35]}  Nd4 {[%clk 0:02:42]} 12. Be3 {[%clk 0:02:32]}  c5 {[%clk 0:02:14]} 13. dxc6 {[%clk 0:02:32]}  Nxc6 {[%clk 0:02:14]} 14. Qd2 {[%clk 0:02:31]}  f5 {[%clk 0:02:05]} 15. Ng5 {[%clk 0:02:27]}  fxe4 {[%clk 0:02:02]} 16. Qd5+ {[%clk 0:02:25]}  Kh8 {[%clk 0:02:02]} 17. Nf7+ {[%clk 0:02:24]}  Rxf7 {[%clk 0:02:02]} 18. Qxf7 {[%clk 0:02:24]}  Nd4 {[%clk 0:01:57]} 19. Bxe4 {[%clk 0:02:15]}  Qh4 {[%clk 0:01:48]} 20. Qxb7 {[%clk 0:01:53]}  Re8 {[%clk 0:01:44]} 21. Qxa7 {[%clk 0:01:54]}  Nf5 {[%clk 0:01:22]} 22. Bxf5 {[%clk 0:01:49]}  Bxf5 {[%clk 0:01:15]} 23. Bd4 {[%clk 0:01:50]}  Nf6 {[%clk 0:01:11]} 24. Qb7 {[%clk 0:01:31]}  Kg8 {[%clk 0:01:02]} 25. a4 {[%clk 0:01:24]}  Bf8 {[%clk 0:00:48]} 26. Qg2 {[%clk 0:01:11]}  Bh3 {[%clk 0:00:40]} 27. Bxf6 {[%clk 0:01:10]}  Qh5 {[%clk 0:00:35]} 28. Qd5+ {[%clk 0:01:09]}  Qxd5 {[%clk 0:00:30]} 29. Nxd5 {[%clk 0:01:09]} 1-0


[Site "https://www.chess.com"]

[Event "Titled Tuesday Blitz May 23 Late 2023"]
[White "carokannlover213"]
[Black "Sivakumar, Shaaketh"]
[BlackFideId "30940176"]
[WhiteElo "2681"]
[BlackElo "2174"]
[Result "0-1"]
[Round "04"]
[TimeControl "180+2"]
[Date "2023.05.23"]
[WhiteClock "0:00:00"]
[BlackClock "0:01:06"]

1. Nf3 {[%clk 0:03:00]}  e6 {[%clk 0:03:00]} 2. c4 {[%clk 0:02:59]}  c5 {[%clk 0:03:00]} 3. e3 {[%clk 0:02:58]}  Nf6 {[%clk 0:02:47]} 4. Nc3 {[%clk 0:02:57]}  b6 {[%clk 0:02:44]} 5. Be2 {[%clk 0:02:50]}  Bb7 {[%clk 0:02:44]} 6. O-O {[%clk 0:02:51]}  g6 {[%clk 0:02:43]} 7. d4 {[%clk 0:02:51]}  cxd4 {[%clk 0:02:43]} 8. Nxd4 {[%clk 0:02:51]}  d5 {[%clk 0:02:44]} 9. cxd5 {[%clk 0:02:51]}  Nxd5 {[%clk 0:02:45]} 10. Bb5+ {[%clk 0:02:50]}  Nd7 {[%clk 0:02:43]} 11. Nxd5 {[%clk 0:02:46]}  Bxd5 {[%clk 0:02:42]} 12. e4 {[%clk 0:02:31]}  Bxe4 {[%clk 0:02:38]} 13. Re1 {[%clk 0:02:29]}  Bd5 {[%clk 0:02:36]} 14. Bf4 {[%clk 0:01:53]}  Bg7 {[%clk 0:02:36]} 15. Nc6 {[%clk 0:01:52]}  Bxc6 {[%clk 0:02:35]} 16. Bxc6 {[%clk 0:01:53]}  Rc8 {[%clk 0:02:35]} 17. Qa4 {[%clk 0:01:38]}  Rxc6 {[%clk 0:01:56]} 18. Qxc6 {[%clk 0:01:37]}  O-O {[%clk 0:01:50]} 19. Rad1 {[%clk 0:01:32]}  Nb8 {[%clk 0:01:51]} 20. Qb7 {[%clk 0:01:05]}  Qc8 {[%clk 0:01:47]} 21. Qxc8 {[%clk 0:00:47]}  Rxc8 {[%clk 0:01:45]} 22. Bxb8 {[%clk 0:00:48]}  Rxb8 {[%clk 0:01:46]} 23. b3 {[%clk 0:00:48]}  Rb7 {[%clk 0:01:43]} 24. Rd8+ {[%clk 0:00:46]}  Bf8 {[%clk 0:01:42]} 25. Red1 {[%clk 0:00:46]}  Kg7 {[%clk 0:01:42]} 26. R1d7 {[%clk 0:00:45]}  Rxd7 {[%clk 0:01:42]} 27. Rxd7 {[%clk 0:00:46]}  a5 {[%clk 0:01:43]} 28. Kf1 {[%clk 0:00:45]}  Bc5 {[%clk 0:01:43]} 29. Ke2 {[%clk 0:00:45]}  h5 {[%clk 0:01:43]} 30. f3 {[%clk 0:00:44]}  Kf6 {[%clk 0:01:42]} 31. Kd3 {[%clk 0:00:43]}  h4 {[%clk 0:01:40]} 32. h3 {[%clk 0:00:40]}  e5 {[%clk 0:01:33]} 33. Rb7 {[%clk 0:00:32]}  Ke6 {[%clk 0:01:30]} 34. Kc4 {[%clk 0:00:26]}  f5 {[%clk 0:01:29]} 35. a3 {[%clk 0:00:18]}  e4 {[%clk 0:01:27]} 36. fxe4 {[%clk 0:00:17]}  fxe4 {[%clk 0:01:28]} 37. b4 {[%clk 0:00:17]}  axb4 {[%clk 0:01:29]} 38. axb4 {[%clk 0:00:18]}  Bg1 {[%clk 0:01:28]} 39. Rb8 {[%clk 0:00:16]}  Ke5 {[%clk 0:01:24]} 40. Rf8 {[%clk 0:00:15]}  Be3 {[%clk 0:01:18]} 41. Rf1 {[%clk 0:00:14]}  g5 {[%clk 0:01:14]} 42. Kc3 {[%clk 0:00:11]}  Bf4 {[%clk 0:01:14]} 43. Re1 {[%clk 0:00:09]}  Bg3 {[%clk 0:01:08]} 44. Re2 {[%clk 0:00:09]}  Kf4 {[%clk 0:01:08]} 45. Kc4 {[%clk 0:00:08]}  Bh2 {[%clk 0:01:08]} 46. Kd5 {[%clk 0:00:05]}  e3 {[%clk 0:01:07]} 47. Kc6 {[%clk 0:00:02]}  Ke4 {[%clk 0:01:06]} 48. Kxb6 {[%clk 0:00:00]}  Kd3 {[%clk 0:01:06]} 0-1


[Site "https://www.chess.com"]

[Event "Titled Tuesday Blitz May 23 Late 2023"]
[White "Camilla_Lee"]
[Black "Kisic, Bozidar"]
[BlackFideId "16500350"]
[WhiteElo "2675"]
[BlackElo "2234"]
[Result "0-1"]
[Round "04"]
[TimeControl "180+2"]
[Date "2023.05.23"]
[WhiteClock "0:00:04"]
[BlackClock "0:00:08"]

1. e4 {[%clk 0:03:00]}  g6 {[%clk 0:02:59]} 2. d4 {[%clk 0:02:59]}  Bg7 {[%clk 0:02:59]} 3. Nc3 {[%clk 0:02:58]}  d6 {[%clk 0:02:59]} 4. f4 {[%clk 0:02:57]}  a6 {[%clk 0:02:57]} 5. Nf3 {[%clk 0:02:57]}  Nd7 {[%clk 0:02:57]} 6. Bd3 {[%clk 0:02:56]}  b5 {[%clk 0:02:57]} 7. O-O {[%clk 0:02:55]}  Bb7 {[%clk 0:02:57]} 8. Qe2 {[%clk 0:02:45]}  c5 {[%clk 0:02:56]} 9. Qe3 {[%clk 0:02:32]}  cxd4 {[%clk 0:02:48]} 10. Nxd4 {[%clk 0:02:31]}  Qb6 {[%clk 0:02:42]} 11. Nce2 {[%clk 0:02:31]}  Ngf6 {[%clk 0:02:29]} 12. h3 {[%clk 0:01:50]}  e5 {[%clk 0:02:28]} 13. Nf3 {[%clk 0:01:45]}  Qxe3+ {[%clk 0:02:25]} 14. Bxe3 {[%clk 0:01:46]}  Nxe4 {[%clk 0:02:23]} 15. fxe5 {[%clk 0:01:44]}  dxe5 {[%clk 0:02:22]} 16. Nd2 {[%clk 0:01:32]}  Nxd2 {[%clk 0:02:20]} 17. Bxd2 {[%clk 0:01:33]}  f5 {[%clk 0:02:19]} 18. Nc3 {[%clk 0:01:31]}  e4 {[%clk 0:02:18]} 19. Be2 {[%clk 0:01:31]}  O-O {[%clk 0:02:12]} 20. Bf4 {[%clk 0:01:27]}  Nf6 {[%clk 0:01:46]} 21. Rad1 {[%clk 0:01:21]}  Rfd8 {[%clk 0:01:46]} 22. a3 {[%clk 0:01:12]}  Kf7 {[%clk 0:01:41]} 23. Kf2 {[%clk 0:01:07]}  Nd5 {[%clk 0:01:33]} 24. Nxd5 {[%clk 0:01:05]}  Bxd5 {[%clk 0:01:33]} 25. c3 {[%clk 0:01:05]}  Bb3 {[%clk 0:01:32]} 26. Rxd8 {[%clk 0:01:03]}  Rxd8 {[%clk 0:01:33]} 27. Ke3 {[%clk 0:01:03]}  Bf8 {[%clk 0:01:32]} 28. Kf2 {[%clk 0:01:02]}  Bc5+ {[%clk 0:01:32]} 29. Be3 {[%clk 0:01:02]}  Be7 {[%clk 0:01:25]} 30. Bd4 {[%clk 0:01:01]}  Ke6 {[%clk 0:01:21]} 31. g4 {[%clk 0:01:00]}  f4 {[%clk 0:01:15]} 32. g5 {[%clk 0:01:00]}  Kd6 {[%clk 0:00:58]} 33. h4 {[%clk 0:00:58]}  Kc6 {[%clk 0:00:52]} 34. Bg4 {[%clk 0:00:57]}  e3+ {[%clk 0:00:50]} 35. Kf3 {[%clk 0:00:57]}  Bd6 {[%clk 0:00:50]} 36. Re1 {[%clk 0:00:48]}  Bd5+ {[%clk 0:00:50]} 37. Ke2 {[%clk 0:00:49]}  Re8 {[%clk 0:00:42]} 38. Bf6 {[%clk 0:00:47]}  Be4 {[%clk 0:00:39]} 39. Rd1 {[%clk 0:00:46]}  Bd5 {[%clk 0:00:37]} 40. h5 {[%clk 0:00:40]}  Bc4+ {[%clk 0:00:37]} 41. Kf3 {[%clk 0:00:39]}  e2 {[%clk 0:00:37]} 42. Re1 {[%clk 0:00:38]}  Re3+ {[%clk 0:00:37]} 43. Kf2 {[%clk 0:00:37]}  Bc5 {[%clk 0:00:35]} 44. Bd4 {[%clk 0:00:37]}  Bxd4 {[%clk 0:00:31]} 45. cxd4 {[%clk 0:00:38]}  Rb3 {[%clk 0:00:31]} 46. hxg6 {[%clk 0:00:25]}  hxg6 {[%clk 0:00:31]} 47. Bf3+ {[%clk 0:00:26]}  Kd6 {[%clk 0:00:27]} 48. Be4 {[%clk 0:00:26]}  Rxb2 {[%clk 0:00:18]} 49. Bxg6 {[%clk 0:00:19]}  Rb3 {[%clk 0:00:18]} 50. Bh5 {[%clk 0:00:16]}  Rg3 {[%clk 0:00:18]} 51. Bxe2 {[%clk 0:00:16]}  Rxg5 {[%clk 0:00:17]} 52. Kf3 {[%clk 0:00:08]}  Rd5 {[%clk 0:00:10]} 53. Ke4 {[%clk 0:00:06]}  Bb3 {[%clk 0:00:07]} 54. Rg1 {[%clk 0:00:04]}  Ke7 {[%clk 0:00:05]} 55. Rg7+ {[%clk 0:00:03]}  Kf6 {[%clk 0:00:06]} 56. Ra7 {[%clk 0:00:03]}  Rd6 {[%clk 0:00:06]} 57. Kxf4 {[%clk 0:00:03]}  Rxd4+ {[%clk 0:00:07]} 58. Ke3 {[%clk 0:00:03]}  Rd6 {[%clk 0:00:08]} 59. Bf3 {[%clk 0:00:04]}  Be6 {[%clk 0:00:08]} 60. Be4 {[%clk 0:00:04]}  Bc4 {[%clk 0:00:08]} 61. Bb7 {[%clk 0:00:04]}  Re6+ {[%clk 0:00:08]} 62. Kd4 {[%clk 0:00:04]}  Rd6+ {[%clk 0:00:08]} 63. Kc5 {[%clk 0:00:04]}  Rd3 {[%clk 0:00:08]} 64. Rxa6+ {[%clk 0:00:04]}  Ke5 {[%clk 0:00:09]} 65. Ra8 {[%clk 0:00:04]}  Rc3 {[%clk 0:00:07]} 66. Kb4 {[%clk 0:00:03]}  Rc1 {[%clk 0:00:08]} 67. Re8+ {[%clk 0:00:03]}  Kd6 {[%clk 0:00:08]} 68. Rh8 {[%clk 0:00:02]}  Kc7 {[%clk 0:00:08]} 69. Be4 {[%clk 0:00:02]}  Re1 {[%clk 0:00:07]} 70. Rh7+ {[%clk 0:00:02]}  Kd6 {[%clk 0:00:08]} 71. Bf3 {[%clk 0:00:03]}  Ke5 {[%clk 0:00:08]} 72. Rh5+ {[%clk 0:00:03]}  Kd4 {[%clk 0:00:08]} 73. Rh4+ {[%clk 0:00:04]}  Ke3 {[%clk 0:00:09]} 74. Bc6 {[%clk 0:00:03]}  Rb1+ {[%clk 0:00:09]} 75. Kc5 {[%clk 0:00:04]}  Ra1 {[%clk 0:00:09]} 76. Rh3+ {[%clk 0:00:03]}  Kd2 {[%clk 0:00:08]} 77. Bxb5 {[%clk 0:00:03]}  Be6 {[%clk 0:00:06]} 78. a4 {[%clk 0:00:03]}  Bxh3 {[%clk 0:00:06]} 79. Kb6 {[%clk 0:00:04]}  Bc8 {[%clk 0:00:05]} 80. a5 {[%clk 0:00:04]}  Kc3 {[%clk 0:00:06]} 81. Bc6 {[%clk 0:00:03]}  Kb4 {[%clk 0:00:05]} 82. Kc7 {[%clk 0:00:04]}  Ba6 {[%clk 0:00:05]} 83. Kb6 {[%clk 0:00:04]}  Rxa5 {[%clk 0:00:06]} 84. Bd7 {[%clk 0:00:04]}  Bb5 {[%clk 0:00:06]} 85. Bc8 {[%clk 0:00:04]}  Ra1 {[%clk 0:00:06]} 86. Bb7 {[%clk 0:00:05]}  Rg1 {[%clk 0:00:06]} 87. Bd5 {[%clk 0:00:05]}  Rg6+ {[%clk 0:00:06]} 88. Kc7 {[%clk 0:00:05]}  Kc5 {[%clk 0:00:07]} 89. Be4 {[%clk 0:00:04]}  Rg7+ {[%clk 0:00:08]} 90. Kd8 {[%clk 0:00:05]}  Kd6 {[%clk 0:00:08]} 91. Kc8 {[%clk 0:00:05]}  Bc6 {[%clk 0:00:08]} 92. Bf5 {[%clk 0:00:04]}  Rg8# {[%clk 0:00:08]} 0-1


[Site "https://www.chess.com"]

[Event "Titled Tuesday Blitz May 23 Late 2023"]
[White "cristianserban1"]
[Black "Prohaszka, Peter"]
[BlackFideId "726265"]
[WhiteElo "2487"]
[BlackElo "2626"]
[Result "0-1"]
[Round "04"]
[TimeControl "180+2"]
[Date "2023.05.23"]
[WhiteClock "0:01:51"]
[BlackClock "0:02:57"]

1. e4 {[%clk 0:03:00]}  c6 {[%clk 0:03:00]} 2. d4 {[%clk 0:02:59]}  d5 {[%clk 0:03:00]} 3. exd5 {[%clk 0:03:00]}  cxd5 {[%clk 0:03:01]} 4. Bd3 {[%clk 0:02:58]}  Nf6 {[%clk 0:03:02]} 5. Bf4 {[%clk 0:02:59]}  Nc6 {[%clk 0:03:03]} 6. c3 {[%clk 0:02:58]}  Bg4 {[%clk 0:03:03]} 7. Qb3 {[%clk 0:02:58]}  Qd7 {[%clk 0:03:03]} 8. Nd2 {[%clk 0:02:58]}  e6 {[%clk 0:03:04]} 9. Ngf3 {[%clk 0:02:59]}  Bd6 {[%clk 0:03:05]} 10. Bxd6 {[%clk 0:02:59]}  Qxd6 {[%clk 0:03:05]} 11. O-O {[%clk 0:03:00]}  O-O {[%clk 0:03:06]} 12. Rfe1 {[%clk 0:03:00]}  Qc7 {[%clk 0:03:05]} 13. Ne5 {[%clk 0:02:58]}  Nxe5 {[%clk 0:03:06]} 14. Rxe5 {[%clk 0:02:57]}  g6 {[%clk 0:03:05]} 15. a4 {[%clk 0:02:50]}  Bf5 {[%clk 0:03:05]} 16. Bxf5 {[%clk 0:02:45]}  gxf5 {[%clk 0:03:06]} 17. Re3 {[%clk 0:02:41]}  Kh8 {[%clk 0:03:02]} 18. Qd1 {[%clk 0:02:35]}  Rg8 {[%clk 0:02:59]} 19. Kh1 {[%clk 0:02:34]}  Ng4 {[%clk 0:02:57]} 20. Nf3 {[%clk 0:01:51]}  Nxf2+ {[%clk 0:02:57]} 0-1


[Site "https://www.chess.com"]

[Event "Titled Tuesday Blitz May 23 Late 2023"]
[White "Haydon, David L"]
[Black "Zeman, Matyas"]
[WhiteFideId "415405"]
[BlackFideId "364398"]
[WhiteElo "2326"]
[BlackElo "2254"]
[Result "1-0"]
[Round "04"]
[TimeControl "180+2"]
[Date "2023.05.23"]
[WhiteClock "0:00:40"]
[BlackClock "0:00:02"]

1. d4 {[%clk 0:03:00]}  Nf6 {[%clk 0:02:59]} 2. Nf3 {[%clk 0:03:00]}  d5 {[%clk 0:02:59]} 3. Bf4 {[%clk 0:03:00]}  e6 {[%clk 0:02:59]} 4. e3 {[%clk 0:03:00]}  Bd6 {[%clk 0:03:00]} 5. Nbd2 {[%clk 0:02:59]}  O-O {[%clk 0:03:00]} 6. Bd3 {[%clk 0:02:59]}  c5 {[%clk 0:03:00]} 7. c3 {[%clk 0:02:59]}  Nc6 {[%clk 0:03:01]} 8. O-O {[%clk 0:02:58]}  Bxf4 {[%clk 0:02:59]} 9. exf4 {[%clk 0:02:58]}  cxd4 {[%clk 0:03:00]} 10. cxd4 {[%clk 0:02:54]}  Bd7 {[%clk 0:02:58]} 11. Nb3 {[%clk 0:02:51]}  Rc8 {[%clk 0:02:56]} 12. Ne5 {[%clk 0:02:50]}  Nb4 {[%clk 0:02:54]} 13. Bb1 {[%clk 0:02:48]}  Ba4 {[%clk 0:02:53]} 14. Qd2 {[%clk 0:02:44]}  Bxb3 {[%clk 0:02:44]} 15. Qxb4 {[%clk 0:02:43]}  Bc4 {[%clk 0:02:34]} 16. Rc1 {[%clk 0:02:36]}  Ba6 {[%clk 0:02:30]} 17. Bc2 {[%clk 0:02:22]}  Qc7 {[%clk 0:01:59]} 18. Bxh7+ {[%clk 0:02:18]}  Nxh7 {[%clk 0:01:57]} 19. Rxc7 {[%clk 0:02:18]}  Rxc7 {[%clk 0:01:58]} 20. h3 {[%clk 0:02:10]}  Rfc8 {[%clk 0:01:56]} 21. b3 {[%clk 0:02:07]}  Nf6 {[%clk 0:01:56]} 22. Re1 {[%clk 0:02:01]}  Ne4 {[%clk 0:01:49]} 23. a4 {[%clk 0:01:46]}  f6 {[%clk 0:01:41]} 24. Ng6 {[%clk 0:01:44]}  Kf7 {[%clk 0:01:40]} 25. f5 {[%clk 0:01:44]}  exf5 {[%clk 0:01:32]} 26. Nf4 {[%clk 0:01:43]}  Rd7 {[%clk 0:00:35]} 27. f3 {[%clk 0:01:38]}  Nc3 {[%clk 0:00:25]} 28. Re3 {[%clk 0:01:32]}  Na2 {[%clk 0:00:19]} 29. Qa5 {[%clk 0:01:30]}  Nc1 {[%clk 0:00:11]} 30. b4 {[%clk 0:01:07]}  Bc4 {[%clk 0:00:11]} 31. Qxa7 {[%clk 0:01:04]}  g5 {[%clk 0:00:11]} 32. Ne6 {[%clk 0:01:00]}  Re8 {[%clk 0:00:09]} 33. Nc5 {[%clk 0:00:47]}  Rxe3 {[%clk 0:00:06]} 34. Nxd7 {[%clk 0:00:47]}  Re1+ {[%clk 0:00:07]} 35. Kh2 {[%clk 0:00:46]}  Ne2 {[%clk 0:00:04]} 36. Qxb7 {[%clk 0:00:44]}  f4 {[%clk 0:00:02]} 37. Ne5+ {[%clk 0:00:42]}  Ke6 {[%clk 0:00:02]} 38. Qd7# {[%clk 0:00:40]} 1-0


[Site "https://www.chess.com"]

[Event "Titled Tuesday Blitz May 23 Late 2023"]
[White "Chen, Justin"]
[Black "Gurevich, Dmitry"]
[WhiteFideId "2098199"]
[BlackFideId "2000407"]
[WhiteElo "2289"]
[BlackElo "2506"]
[Result "0-1"]
[Round "04"]
[TimeControl "180+2"]
[Date "2023.05.23"]
[WhiteClock "0:00:00"]
[BlackClock "0:00:06"]

1. d4 {[%clk 0:03:00]}  Nf6 {[%clk 0:02:57]} 2. Nf3 {[%clk 0:03:01]}  e6 {[%clk 0:02:55]} 3. Bf4 {[%clk 0:03:01]}  b6 {[%clk 0:02:53]} 4. g3 {[%clk 0:02:59]}  Bb7 {[%clk 0:02:52]} 5. Bg2 {[%clk 0:02:59]}  Be7 {[%clk 0:02:50]} 6. O-O {[%clk 0:03:00]}  O-O {[%clk 0:02:50]} 7. c4 {[%clk 0:03:00]}  c5 {[%clk 0:02:48]} 8. Nc3 {[%clk 0:02:50]}  cxd4 {[%clk 0:02:47]} 9. Qxd4 {[%clk 0:02:51]}  d6 {[%clk 0:02:40]} 10. Qd2 {[%clk 0:02:37]}  h6 {[%clk 0:02:31]} 11. Rfd1 {[%clk 0:02:33]}  e5 {[%clk 0:02:29]} 12. Be3 {[%clk 0:02:33]}  Nbd7 {[%clk 0:02:24]} 13. Rac1 {[%clk 0:02:32]}  a6 {[%clk 0:02:18]} 14. Ne1 {[%clk 0:01:41]}  Bxg2 {[%clk 0:02:16]} 15. Nxg2 {[%clk 0:01:41]}  Rb8 {[%clk 0:01:55]} 16. Qd3 {[%clk 0:01:29]}  Re8 {[%clk 0:01:32]} 17. b3 {[%clk 0:01:27]}  Bf8 {[%clk 0:01:30]} 18. Rc2 {[%clk 0:01:09]}  Qc8 {[%clk 0:01:26]} 19. Rcd2 {[%clk 0:01:07]}  Qb7 {[%clk 0:01:22]} 20. a4 {[%clk 0:00:56]}  Nc5 {[%clk 0:01:18]} 21. Qb1 {[%clk 0:00:49]}  Nce4 {[%clk 0:01:12]} 22. Nxe4 {[%clk 0:00:44]}  Nxe4 {[%clk 0:01:11]} 23. Rd3 {[%clk 0:00:42]}  Nc5 {[%clk 0:01:07]} 24. Bxc5 {[%clk 0:00:41]}  bxc5 {[%clk 0:01:07]} 25. Ne3 {[%clk 0:00:37]}  e4 {[%clk 0:01:06]} 26. Rc3 {[%clk 0:00:33]}  g6 {[%clk 0:01:01]} 27. Nd5 {[%clk 0:00:26]}  Bg7 {[%clk 0:01:00]} 28. Re3 {[%clk 0:00:27]}  f5 {[%clk 0:00:52]} 29. g4 {[%clk 0:00:11]}  Kf7 {[%clk 0:00:43]} 30. gxf5 {[%clk 0:00:06]}  gxf5 {[%clk 0:00:43]} 31. Rg3 {[%clk 0:00:06]}  Be5 {[%clk 0:00:40]} 32. f4 {[%clk 0:00:03]}  Bh8 {[%clk 0:00:29]} 33. Kh1 {[%clk 0:00:03]}  Rg8 {[%clk 0:00:25]} 34. Rdg1 {[%clk 0:00:03]}  Bd4 {[%clk 0:00:19]} 35. Rxg8 {[%clk 0:00:02]}  Rxg8 {[%clk 0:00:17]} 36. Rxg8 {[%clk 0:00:03]}  Kxg8 {[%clk 0:00:17]} 37. e3 {[%clk 0:00:03]}  Bg7 {[%clk 0:00:13]} 38. Qd1 {[%clk 0:00:04]}  Qf7 {[%clk 0:00:09]} 39. Qe2 {[%clk 0:00:02]}  Kh7 {[%clk 0:00:08]} 40. Kg2 {[%clk 0:00:01]}  Bh8 {[%clk 0:00:07]} 41. Kf1 {[%clk 0:00:00]}  Qg7 {[%clk 0:00:06]} 0-1


[Site "https://www.chess.com"]